fUST/lending_fUST_20240213
["ID","MTS","AMOUNT","RATE_DAILY","PERIOD"]
[313894055,1707778244415,-500.0,0.00026849,2]
[313894056,1707778244425,-949.58,0.00026849,2]
[313894057,1707778244433,-535.89,0.00026849,2]
[313894058,1707778244443,-774.83,0.00026849,2]
[313894059,1707778244452,-1362.1,0.00026849,2]
[313894060,1707778244461,-3062.68810289,0.00027,2]
[313894061,1707778244470,-271.0,0.00027,2]
[313894062,1707778244479,-186.0,0.00027,2]
[313894063,1707778244488,-391.0,0.00027012,15]
[313894064,1707778244497,-150.0,0.0002708,2]
[313894065,1707778244506,-500.0,0.00027123,2]
[313894066,1707778244516,-690.04,0.00027123,2]
[313894067,1707778244525,-500.0,0.00027123,2]
[313894069,1707778244534,-949.58,0.00027123,2]
[313894071,1707778244543,-535.89,0.00027123,2]
[313894072,1707778244552,-774.83,0.00027123,2]
[313894074,1707778244562,-1362.1,0.00027123,2]
[313894076,1707778244571,-412.475481,0.000273,13]
[313894078,1707778244579,-155.0,0.00027397,2]
[313894080,1707778244589,-500.0,0.00027397,2]
[313894082,1707778244598,-690.04,0.00027397,2]
[313894084,1707778244607,-500.0,0.00027397,2]
[313894086,1707778244615,-949.58,0.00027397,2]
[313894088,1707778244624,-535.89,0.00027397,2]
[313894090,1707778244633,-774.83,0.00027397,2]
[313894092,1707778244643,-192.25041619,0.00027397,2]
[313894094,1707778244652,-1000.364035,0.000275,2]
[313894096,1707778244661,-500.0,0.00027671,2]
[313894098,1707778244670,-690.04,0.00027671,2]
[313894100,1707778244680,-500.0,0.00027671,2]
[313894102,1707778244689,-949.58,0.00027671,2]
[313894103,1707778244698,-535.89,0.00027671,2]
[313894105,1707778244707,-774.83,0.00027671,2]
[313894107,1707778244717,-271.0,0.00027671,2]
[313894109,1707778244728,-208.99234688,0.00027845,2]
[313894111,1707778244737,-224.6617888,0.000279,2]
[313894113,1707778244746,-251.151999,0.00027943,2]
[313894115,1707778244755,-500.0,0.00027945,2]
[313894117,1707778244764,-690.04,0.00027945,2]
[313894119,1707778244773,-500.0,0.00027945,2]
[313894121,1707778244782,-949.58,0.00027945,2]
[313894123,1707778244790,-535.89,0.00027945,2]
[313894125,1707778244799,-774.83,0.00027945,2]
[313894127,1707778244808,-156.28294751,0.00027998,2]
[313894129,1707778244817,-239.29758566,0.00027998,2]
[313894131,1707778244826,-273.27631411,0.00028,3]
[313894133,1707778244835,-11792.23427446,0.00028,2]
[313894135,1707778244844,-3296.24008617,0.00028,2]
[313894137,1707778244854,-200.77758066,0.00028,2]
[313894139,1707778244863,-129270.11381364,0.00028,20]
[313894141,1707778244872,-600.0,0.00028,2]
[313894143,1707778244881,-250.0,0.00028,2]
[313894145,1707778244890,-213.13934174,0.00028,5]
[313894147,1707778244899,-191.76293769,0.00028,5]
[313894149,1707778244908,-159.34786879,0.00028,7]
[313894151,1707778244917,-2126.34600635,0.00028,5]
[313894153,1707778244925,-464.82001049,0.00028,7]
[313894155,1707778244934,-2634.22081541,0.00028,4]
[313894157,1707778244943,-10000.0,0.00028,4]
[313894158,1707778244953,-15572.65476155,0.00028,4]
[313894160,1707778244962,-792.50463375,0.00028,4]
[313894162,1707778244972,-201.39550944,0.00028,5]
[313894164,1707778244981,-509.80911395,0.00028,2]
[313894166,1707778244990,-306.0,0.00028041,2]
[313894168,1707778245000,-200.1182246,0.00028041,2]
[313894170,1707778245009,-200.1182246,0.00028041,2]
[313894172,1707778245019,-200.1182246,0.00028041,2]
[313894174,1707778245028,-200.1182246,0.00028041,2]
[313894175,1707778245037,-200.1182246,0.00028041,2]
[313894177,1707778245046,-200.1182246,0.00028041,2]
[313894179,1707778245055,-150.0,0.0002808,2]
[313894180,1707778245066,-500.0,0.00028219,2]
[313894181,1707778245076,-690.04,0.00028219,2]
[313894182,1707778245085,-500.0,0.00028219,2]
[313894183,1707778245095,-949.58,0.00028219,2]
[313894184,1707778245104,-535.89,0.00028219,2]
[313894185,1707778245114,-774.83,0.00028219,2]
[313894186,1707778245123,-150.0,0.00028279,2]
[313894187,1707778245132,-150.0,0.00028279,2]
[313894188,1707778245141,-160.74479514,0.0002828,2]
[313894189,1707778245150,-500.0,0.00028493,2]
[313894190,1707778245160,-690.04,0.00028493,2]
[313894191,1707778245169,-214.22851027,0.00028493,2]
[313894192,1707778245178,-949.58,0.00028493,2]
[313894193,1707778245187,-535.89,0.00028493,2]
[313894194,1707778245196,-774.83,0.00028493,2]
[313894195,1707778245205,-1000.0,0.000285,2]
[313894196,1707778245214,-1558.72940838,0.000287,5]
[313894197,1707778245223,-155.0,0.00028767,2]
[313894198,1707778245234,-500.0,0.00028767,2]
[313894199,1707778245244,-690.04,0.00028767,2]
[313894200,1707778245253,-949.58,0.00028767,2]
[313894201,1707778245262,-535.89,0.00028767,2]
[313894202,1707778245272,-774.83,0.00028767,2]
[313894203,1707778245282,-271.0,0.00028767,2]
[313894204,1707778245292,-186.0,0.00028767,2]
[313894205,1707778245301,-7000.0,0.000288,2]
[313894206,1707778245312,-7000.0,0.000288,2]
[313894207,1707778245321,-7040.916784,0.000288,2]
[313894208,1707778245331,-230.04031739,0.00028989,2]
[313894209,1707778245341,-310.83582675,0.00028989,2]
[313894210,1707778245351,-500.0,0.00028989,2]
[313894211,1707778245361,-211.00095086,0.00028989,2]
[313894212,1707778245372,-200.47965729,0.00028989,2]
[313894213,1707778245382,-500.0,0.00028989,2]
[313894214,1707778245392,-500.0,0.00028989,2]
[313894215,1707778245402,-500.0,0.00028989,2]
[313894216,1707778245411,-227.45310107,0.00028989,2]
[313894217,1707778245421,-370.93319634,0.00028989,2]
[313894218,1707778245432,-500.0,0.00028989,2]
[313894219,1707778245443,-500.0,0.00028989,2]
[313894220,1707778245452,-500.0,0.00028989,2]
[313894221,1707778245461,-500.0,0.00028989,2]
[313894222,1707778245471,-500.0,0.00028989,2]
[313894223,1707778245481,-329.06164435,0.00028989,2]
[313894224,1707778245491,-38577.87103875,0.0002899,2]
[313894225,1707778245501,-9012.12,0.00028999,2]
[313894226,1707778245510,-9012.12,0.00028999,2]
[313894227,1707778245519,-9012.12,0.00028999,2]
[313894228,1707778245528,-9012.12,0.00028999,2]
[313894229,1707778245538,-9012.12,0.00028999,2]
[313894230,1707778245547,-9012.12,0.00028999,2]
[313894231,1707778245556,-9012.12,0.00028999,2]
[313894232,1707778245565,-9012.12,0.00028999,2]
[313894233,1707778245574,-9012.12,0.00028999,2]
[313894234,1707778245583,-352.02261267,0.00029,10]
[313894235,1707778245592,-61616.0,0.00029,2]
[313894236,1707778245600,-835.62026023,0.00029,2]
[313894237,1707778245609,-1000.0,0.00029,29]
[313894238,1707778245618,-17128.9591453,0.00029,4]
[313894239,1707778245629,-699.56261457,0.00029,3]
[313894240,1707778245639,-2541.741,0.00029,5]
[313894241,1707778245649,-151.22315066,0.00029,2]
[313894243,1707778245658,-17969.08579802,0.00029,2]
[313894244,1707778245667,-500.0,0.00029,2]
[313894245,1707778245676,-2634.0,0.00029,4]
[313894246,1707778245685,-10000.0,0.00029,4]
[313894247,1707778245694,-15572.0,0.00029,4]
[313894248,1707778245703,-792.0,0.00029,4]
[313894249,1707778245712,-500.0,0.00029041,2]
[313894250,1707778245722,-690.04,0.00029041,2]
[313894251,1707778245731,-949.58,0.00029041,2]
[313894252,1707778245740,-535.89,0.00029041,2]
[313894253,1707778245750,-774.83,0.00029041,2]
[313894254,1707778245758,-150.0,0.0002908,2]
[313894256,1707778245768,-208.9923468,0.00029184,2]
[313894257,1707778245777,-150.0,0.00029279,2]
[313894258,1707778245786,-150.0,0.00029279,2]
[313894259,1707778245795,-500.0,0.00029315,2]
[313894260,1707778245805,-690.04,0.00029315,2]
[313894261,1707778245814,-949.58,0.00029315,2]
[313894262,1707778245823,-535.89,0.00029315,2]
[313894263,1707778245832,-774.83,0.00029315,2]
[313894264,1707778245843,-3000.0,0.000295,7]
[313894265,1707778245852,-1467.1364528,0.000295,30]
[313894266,1707778245861,-500.0,0.00029589,2]
[313894267,1707778245870,-690.04,0.00029589,2]
[313894268,1707778245879,-949.58,0.00029589,2]
[313894269,1707778245889,-535.89,0.00029589,2]
[313894270,1707778245898,-774.83,0.00029589,2]
[313894271,1707778245908,-300.0,0.00029614,2]
[313894272,1707778245917,-12499.0270054,0.00029664,5]
[313894274,1707778245926,-154.95351395,0.000297,2]
[313894276,1707778245935,-200.0,0.00029713,15]
[313894278,1707778245945,-348.0,0.00029713,15]
[313894279,1707778245954,-500.0,0.00029863,2]
[313894280,1707778245965,-690.04,0.00029863,2]
[313894281,1707778245974,-949.58,0.00029863,2]
[313894282,1707778245983,-535.89,0.00029863,2]
[313894283,1707778245993,-774.83,0.00029863,2]
[313894284,1707778246002,-1693.98868147,0.0002987,12]
[313894285,1707778246011,-2274.93850063,0.000299,2]
[313894286,1707778246021,-4867.90804913,0.0002999,3]
[313894287,1707778246030,-1000.0,0.00029999,3]
[313894288,1707778246040,-9012.12,0.00029999,2]
[313894289,1707778246049,-3343.30212067,0.0003,2]
[313894290,1707778246059,-244.90138171,0.0003,4]
[313894291,1707778246069,-155.07753877,0.0003,4]
[313894292,1707778246079,-504.17896361,0.0003,14]
[313894293,1707778246088,-376.24098538,0.0003,10]
[313894294,1707778246097,-701.92762911,0.0003,2]
[313894295,1707778246107,-681.95091466,0.0003,4]
[313894296,1707778246116,-643.73412871,0.0003,14]
[313894297,1707778246126,-5000.0,0.0003,7]
[313894298,1707778246135,-17598.44879661,0.0003,10]
[313894299,1707778246145,-158.45838392,0.0003,4]
[313894300,1707778246154,-201.41362991,0.0003,4]
[313894301,1707778246164,-167.39254874,0.0003,2]
[313894302,1707778246173,-2200.67108591,0.0003,2]
[313894303,1707778246183,-500.1722924,0.0003,2]
[313894304,1707778246192,-2274.31291399,0.0003,14]
[313894305,1707778246201,-441.0,0.0003,2]
[313894306,1707778246211,-24146.83967644,0.0003,2]
[313894307,1707778246220,-508.86,0.0003,2]
[313894308,1707778246230,-7005.29453261,0.0003,10]
[313894309,1707778246239,-7415.10982057,0.0003,2]
[313894310,1707778246333,-243.95968741,0.0003,4]
[313894311,1707778246343,-2319.65896608,0.0003,2]
[313894312,1707778246352,-35559.749576,0.0003,3]
[313894313,1707778246361,-11324.13598732,0.0003,2]
[313894314,1707778246370,-154.87609912,0.0003,2]
[313894315,1707778246380,-1774.92292494,0.0003,4]
[313894316,1707778246390,-6000.00965994,0.0003,2]
[313894317,1707778246399,-15000.0,0.0003,5]
[313894318,1707778246410,-2152.953,0.0003,6]
[313894319,1707778246419,-1293.26159718,0.0003,2]
[313894320,1707778246428,-154.97460135,0.0003,7]
[313894321,1707778246438,-2000.0,0.0003,7]
[313894322,1707778246448,-2000.0,0.0003,7]
[313894323,1707778246457,-2534.98272154,0.0003,10]
[313894324,1707778246466,-5149.57235832,0.0003,3]
[313894325,1707778246476,-1950.25122515,0.0003,4]
[313894326,1707778246487,-84007.98781708,0.0003,4]
[313894327,1707778246496,-311.15505357,0.0003,2]
[313894328,1707778246505,-256.0,0.0003,2]
[313894329,1707778246514,-1361.83448581,0.00030017,2]
[313894330,1707778246524,-1607.15897835,0.00030017,3]
[313894331,1707778246533,-150.0,0.0003008,2]
[313894332,1707778246541,-198.37749835,0.0003013,2]
[313894333,1707778246550,-220.0,0.00030136,2]
[313894334,1707778246560,-220.0,0.00030136,2]
[313894335,1707778246568,-220.0,0.00030136,2]
[313894336,1707778246578,-220.0,0.00030136,2]
[313894337,1707778246587,-183.11052637,0.00030136,2]
[313894338,1707778246596,-500.0,0.00030136,2]
[313894339,1707778246605,-690.04,0.00030136,2]
[313894340,1707778246615,-949.58,0.00030136,2]
[313894341,1707778246623,-535.89,0.00030136,2]
[313894342,1707778246632,-774.83,0.00030136,2]
[313894343,1707778246641,-155.0,0.00030137,2]
[313894344,1707778246650,-275.0,0.00030205,2]
[313894345,1707778246659,-300.0,0.00030228,2]
[313894346,1707778246669,-150.0,0.00030279,2]
[313894347,1707778246678,-241.25652876,0.000304,2]
[313894348,1707778246688,-500.0,0.0003041,2]
[313894349,1707778246697,-690.04,0.0003041,2]
[313894350,1707778246706,-949.58,0.0003041,2]
[313894351,1707778246715,-535.89,0.0003041,2]
[313894352,1707778246724,-774.83,0.0003041,2]
[313894353,1707778246734,-5000.0,0.000305,7]
[313894354,1707778246743,-208.9923468,0.00030524,2]
[313894355,1707778246752,-500.0,0.00030684,2]
[313894356,1707778246762,-690.04,0.00030684,2]
[313894357,1707778246771,-949.58,0.00030684,2]
[313894358,1707778246781,-535.89,0.00030684,2]
[313894359,1707778246789,-300.0,0.00030843,2]
[313894360,1707778246799,-356.13187708,0.00030958,2]
[313894361,1707778246808,-690.09858737,0.00030958,2]
[313894362,1707778246817,-949.59860916,0.00030958,2]
[313894363,1707778246827,-535.91,0.00030958,2]
[313894364,1707778246835,-166.134712,0.00030959,2]
[313894365,1707778246844,-166.134712,0.00030959,9]
[313894366,1707778246853,-166.134712,0.00030959,16]
[313894367,1707778246862,-166.134712,0.00030959,24]
[313894368,1707778246870,-166.134712,0.00030959,31]
[313894369,1707778246879,-166.134712,0.00030959,38]
[313894370,1707778246888,-166.134712,0.00030959,46]
[313894371,1707778246897,-166.134712,0.00030959,53]
[313894372,1707778246906,-166.134712,0.00030959,61]
[313894373,1707778246914,-166.134712,0.00030959,68]
[313894374,1707778246923,-166.134712,0.00030959,75]
[313894375,1707778246932,-166.134712,0.00030959,83]
[313894376,1707778246941,-166.134712,0.00030959,90]
[313894377,1707778246951,-166.134712,0.00030959,97]
[313894378,1707778246960,-166.134712,0.00030959,105]
[313894379,1707778246968,-166.134712,0.00030959,112]
[313894380,1707778246977,-166.134712,0.00030959,120]
[313894381,1707778246986,-9299.92611939,0.00031,2]
[313894469,1707779432342,-1019.11530917,0.00019073,2]
[313894471,1707779432352,-154.98450155,0.00019074,3]
[313894488,1707779432512,-1733.97919696,0.00019075,2]
[313894489,1707779432522,-1498.3806744,0.00019076,2]
[313894491,1707779432531,-154.98450155,0.00019076,2]
[313894493,1707779432541,-601.97785253,0.00019078,2]
[313894495,1707779432550,-229.8334416,0.00019178,2]
[313894496,1707779432559,-18971.13263519,0.00020008,2]
[313894497,1707779432568,-24900.0,0.00020085,2]
[313894498,1707779432578,-563.60587193,0.00020141,2]
[313894499,1707779432586,-168.246908,0.00020142,2]
[313894500,1707779432595,-428.50000661,0.00020195,2]
[313894501,1707779432604,-247.38920084,0.00022,4]
[313894502,1707779432614,-326.73535811,0.00022,2]
[313894503,1707779432623,-427.63664462,0.00022,2]
[313894504,1707779432631,-200.0,0.00022008,7]
[313894505,1707779432641,-3331.11583039,0.00022271,2]
[313894506,1707779432650,-3047.0,0.0002239,3]
[313894507,1707779432659,-2539.16,0.0002239,3]
[313894508,1707779432668,-164.61877762,0.00022399,2]
[313894509,1707779432677,-15240.51760793,0.000224,2]
[313894510,1707779432686,-9159.62371896,0.00022497,2]
[313894511,1707779432695,-1490.47840988,0.00022499,2]
[313894512,1707779432704,-280.15298294,0.00022499,2]
[313894513,1707779432714,-1200.0,0.000225,2]
[313894514,1707779432723,-405.39176061,0.000225,2]
[313894515,1707779432733,-1264.21341125,0.00023,2]
[313894516,1707779432742,-9976.71224854,0.00023037,2]
[313894517,1707779432751,-6841.24705964,0.00023038,2]
[313894518,1707779432760,-759.17010593,0.00023038,2]
[313894519,1707779432770,-280.0,0.00024209,7]
[313894520,1707779432779,-454.38409344,0.00024657,2]
[313894521,1707779432788,-500.0,0.00024657,2]
[313894522,1707779432797,-500.0,0.00024657,2]
[313894523,1707779432806,-500.0,0.00024657,2]
[313894524,1707779432815,-500.0,0.00024657,2]
[313894525,1707779432824,-500.0,0.00024657,2]
[313894526,1707779432833,-500.0,0.00024657,2]
[313894527,1707779432842,-794.56,0.00024657,2]
[313894528,1707779432851,-500.0,0.00024657,2]
[313894529,1707779432860,-500.0,0.00024657,2]
[313894530,1707779432869,-500.0,0.00024657,2]
[313894531,1707779432878,-500.0,0.00024657,2]
[313894532,1707779432887,-500.0,0.00024657,2]
[313894533,1707779432897,-500.0,0.00024657,2]
[313894534,1707779432905,-500.0,0.00024657,2]
[313894535,1707779432915,-500.0,0.00024657,2]
[313894536,1707779432923,-500.0,0.00024657,2]
[313894537,1707779432932,-500.0,0.00024657,2]
[313894538,1707779432942,-500.0,0.00024657,2]
[313894539,1707779432951,-500.0,0.00024657,2]
[313894540,1707779432960,-500.0,0.00024931,2]
[313894541,1707779432970,-603.46,0.00024931,2]
[313894542,1707779432979,-500.0,0.00024931,2]
[313894543,1707779432988,-500.0,0.00024931,2]
[313894544,1707779432998,-500.0,0.00024931,2]
[313894545,1707779433006,-301.39,0.00024931,2]
[313894546,1707779433016,-794.56,0.00024931,2]
[313894547,1707779433025,-500.0,0.00024931,2]
[313894548,1707779433035,-500.0,0.00024931,2]
[313894549,1707779433044,-500.0,0.00024931,2]
[313894550,1707779433053,-500.0,0.00024931,2]
[313894551,1707779433063,-500.0,0.00024931,2]
[313894552,1707779433072,-500.0,0.00024931,2]
[313894553,1707779433081,-500.0,0.00024931,2]
[313894554,1707779433090,-500.0,0.00024931,2]
[313894555,1707779433099,-550.86,0.00024931,2]
[313894556,1707779433109,-500.0,0.00024931,2]
[313894557,1707779433119,-500.0,0.00024931,2]
[313894558,1707779433128,-500.0,0.00024931,2]
[313894559,1707779433138,-335.81448194,0.00025204,2]
[313894560,1707779433147,-7412.2245313,0.00025204,2]
[313894561,1707779433156,-500.0,0.00025205,2]
[313894562,1707779433166,-500.0,0.00025205,2]
[313894563,1707779433175,-190.86,0.00025205,2]
[313894564,1707779433185,-794.56,0.00025205,2]
[313894565,1707779433194,-500.0,0.00025205,2]
[313894566,1707779433203,-500.0,0.00025205,2]
[313894567,1707779433213,-179.3551358,0.00025205,2]
[313894568,1707779433226,-320.6448642,0.00025205,2]
[313894569,1707779433235,-500.0,0.00025205,2]
[313894570,1707779433245,-500.0,0.00025205,2]
[313894571,1707779433254,-257.32,0.00025205,2]
[313894572,1707779433264,-500.0,0.00025205,2]
[313894573,1707779433273,-500.0,0.00025205,2]
[313894574,1707779433283,-500.0,0.00025479,2]
[313894575,1707779433293,-500.0,0.00025479,2]
[313894576,1707779433302,-794.56,0.00025479,2]
[313894577,1707779433311,-500.0,0.00025479,2]
[313894578,1707779433321,-500.0,0.00025479,2]
[313894579,1707779433331,-500.0,0.00025479,2]
[313894580,1707779433340,-500.0,0.00025479,2]
[313894581,1707779433349,-172.84,0.00025479,2]
[313894582,1707779433358,-500.0,0.00025479,2]
[313894583,1707779433367,-500.0,0.00025479,2]
[313894584,1707779433377,-500.0,0.00025753,2]
[313894585,1707779433386,-174.04,0.00025753,2]
[313894586,1707779433395,-794.56,0.00025753,2]
[313894587,1707779433407,-500.0,0.00025753,2]
[313894588,1707779433416,-500.0,0.00025753,2]
[313894589,1707779433426,-265.96,0.00025753,2]
[313894590,1707779433435,-500.0,0.00025753,2]
[313894591,1707779433445,-500.0,0.00025753,2]
[313894592,1707779433454,-500.0,0.00025753,2]
[313894593,1707779433464,-280.68844006,0.00026026,2]
[313894594,1707779433473,-419.74705947,0.00026027,2]
[313894595,1707779433531,-80.25294053,0.00026027,2]
[313894596,1707779433540,-794.56,0.00026027,2]
[313894597,1707779433550,-500.0,0.00026027,2]
[313894598,1707779433560,-500.0,0.00026027,2]
[313894599,1707779433570,-194.87177582,0.00026027,2]
[313894636,1707779439535,-154.98450155,0.00019073,2]
[313894638,1707779439545,-371.42822418,0.00026027,2]
[313894640,1707779439554,-500.0,0.00026027,2]
[313894642,1707779439563,-500.0,0.00026027,2]
[313894644,1707779439574,-500.0,0.00026301,2]
[313894646,1707779439583,-794.56,0.00026301,2]
[313894648,1707779439592,-293.86,0.00026301,2]
[313894650,1707779439601,-500.0,0.00026301,2]
[313894652,1707779439610,-500.0,0.00026301,2]
[313894654,1707779439619,-500.0,0.00026301,2]
[313894656,1707779439628,-612.24,0.00026575,2]
[313894658,1707779439637,-794.56,0.00026575,2]
[313894660,1707779439646,-500.0,0.00026575,2]
[313894662,1707779439655,-500.0,0.00026575,2]
[313894664,1707779439664,-500.0,0.00026575,2]
[313894666,1707779439673,-391.0,0.0002663,15]
[313894668,1707779439682,-794.56,0.00026849,2]
[313894670,1707779439690,-500.0,0.00026849,2]
[313894672,1707779439699,-500.0,0.00026849,2]
[313894674,1707779439708,-500.0,0.00026849,2]
[313894676,1707779439717,-2949.62661146,0.00027122,2]
[313894854,1707779441704,-113.06149143,0.00027122,2]
[313894855,1707779441713,-794.56,0.00027123,2]
[313894856,1707779441724,-500.0,0.00027123,2]
[313894857,1707779441733,-500.0,0.00027123,2]
[313894858,1707779441742,-500.0,0.00027123,2]
[313894860,1707779441752,-1434.56222192,0.00027394,2]
[313894862,1707779441761,-261.53886969,0.00027395,2]
[313894864,1707779441773,-377.80787768,0.00027395,2]
[313894865,1707779441782,-160.66729112,0.00027395,2]
[313894867,1707779441791,-767.01207418,0.00027395,5]
[313894868,1707779441800,-261.98617996,0.00027395,2]
[313894870,1707779441809,-323.90420148,0.00027396,2]
[313894871,1707779441818,-195.11326893,0.00027396,2]
[313894872,1707779441827,-323.07939233,0.00027396,2]
[313894873,1707779441836,-794.56,0.00027397,2]
[313894874,1707779441846,-155.0,0.00027397,2]
[313894875,1707779441855,-500.0,0.00027397,2]
[313894876,1707779441864,-500.0,0.00027397,2]
[313894877,1707779441873,-500.0,0.00027397,2]
[313894878,1707779441883,-150.0,0.000275,2]
[313894879,1707779441892,-794.56,0.00027671,2]
[313894880,1707779441901,-500.0,0.00027671,2]
[313894881,1707779441911,-500.0,0.00027671,2]
[313894882,1707779441920,-500.0,0.00027671,2]
[313894883,1707779441929,-359.12868833,0.000279,2]
[313894884,1707779441938,-155.0,0.000279,2]
[313894885,1707779441947,-794.56,0.00027945,2]
[313894886,1707779441956,-500.0,0.00027945,2]
[313894887,1707779441965,-500.0,0.00027945,2]
[313894888,1707779441975,-189.84,0.00027945,2]
[313894889,1707779441984,-250.0,0.00027999,2]
[313894890,1707779441993,-200.77758066,0.00028,2]
[313894891,1707779442002,-3296.24008617,0.00028,2]
[313894892,1707779442011,-36426.52511471,0.00028,10]
[313894907,1707779445514,-2707.30222065,0.00028,10]
[313894908,1707779445523,-2105.99456091,0.00028209,3]
[313895835,1707779465120,499.33163229,0.00023,120]
[313895911,1707780635220,-154.92253873,0.00017854,3]
[313895912,1707780635230,-250.0,0.00017855,2]
[313895913,1707780635240,-4738.56577384,0.00018848,2]
[313895931,1707780638712,-3250.00239235,0.00018848,2]
[313895932,1707780638721,-144.13508314,0.00018848,2]
[313895933,1707780638733,-1589.84411382,0.00018848,2]
[313895934,1707780638742,-1498.3806744,0.00018849,2]
[313895935,1707780638751,-821.43357407,0.0001885,2]
[313895936,1707780638760,-154.92253873,0.00018851,2]
[313895937,1707780638769,-9999.7089876,0.00018852,2]
[313895938,1707780638784,-7950.84398679,0.00018852,2]
[313895939,1707780638799,-1201.240129,0.00018852,2]
[313895940,1707780638808,-24900.0,0.00018862,2]
[313895941,1707780638817,-1115.76610401,0.000195,2]
[313895942,1707780638826,-200.0,0.00019793,2]
[313895944,1707780638836,-168.591889,0.00019824,2]
[313895947,1707780638845,-280.0,0.00021772,7]
[313895950,1707780638854,-427.63664462,0.00022,2]
[313895952,1707780638863,-326.73535811,0.00022,2]
[313895955,1707780638873,-7724.99,0.0002248,3]
[313895958,1707780638882,-2728.67238549,0.0002249,3]
[313895960,1707780638894,-357.62281226,0.0002249,3]
[313895998,1707780641856,-427.63664462,0.00022479,2]
[313896001,1707780641867,-48.84975187,0.0002249,3]
[313896003,1707780641898,-7988.83505038,0.0002249,3]
[313896005,1707780641908,-9269.99,0.0002249,3]
[313896007,1707780641918,-21170.02599294,0.000225,2]
[313896009,1707780641929,-3392.9835901,0.000225,2]
[313896012,1707780641944,-2449.67535945,0.000225,2]
[313896014,1707780641956,-671.79619962,0.000225,2]
[313896016,1707780641968,-10821.14863283,0.000225,2]
[313896018,1707780641977,-189.48818749,0.0002277,2]
[313896020,1707780641986,-300.0,0.00023,2]
[313896022,1707780641996,-2092.52534233,0.00023,2]
[313896024,1707780642005,-1833.12108864,0.00023,2]
[313896026,1707780642015,-1264.21341125,0.00023,2]
[313896028,1707780642024,-9976.71224854,0.00023037,2]
[313896029,1707780642033,-763.12865871,0.00023038,2]
[313896030,1707780642042,-2937.38743523,0.00023038,2]
[313896032,1707780642051,-555.41450294,0.00023038,2]
[313896033,1707780642060,-391.0,0.0002395,7]
[313896034,1707780642069,-500.55022621,0.0002447,5]
[313896035,1707780642078,-1000.0,0.00024657,5]
[313896036,1707780642087,-500.0,0.00024657,2]
[313896037,1707780642096,-500.0,0.00024657,2]
[313896038,1707780642105,-500.0,0.00024657,2]
[313896039,1707780642114,-500.0,0.00024657,2]
[313896040,1707780642123,-500.0,0.00024657,2]
[313896041,1707780642132,-500.0,0.00024657,2]
[313896042,1707780642142,-500.0,0.00024657,2]
[313896043,1707780642152,-500.0,0.00024657,2]
[313896044,1707780642163,-500.0,0.00024657,2]
[313896045,1707780642173,-500.0,0.00024657,2]
[313896046,1707780642183,-500.0,0.00024657,2]
[313896047,1707780642192,-500.0,0.00024657,2]
[313896048,1707780642201,-500.0,0.00024657,2]
[313896049,1707780642211,-500.0,0.00024657,2]
[313896050,1707780642220,-1025.35911321,0.00024931,5]
[313896051,1707780642229,-500.0,0.00024931,2]
[313896052,1707780642239,-243.23,0.00024931,2]
[313896053,1707780642248,-500.0,0.00024931,2]
[313896054,1707780642258,-293.31930518,0.00024931,2]
[313896055,1707780642267,-500.0,0.00024931,2]